[Event "Live Chess"]
[Site "Chess.com"]
[Date "2024.06.02"]
[Round "-"]
[White "juniortay"]
[Black "SimonBoy1"]
[Result "1-0"]
[WhiteElo "2397"]
[BlackElo "1530"]
[TimeControl "300"]
[EndTime "1:06:12 PDT"]
[Termination "juniortay won by resignation"]

1. e4 {[%clk 0:04:57.8]} 1... c5 {[%clk 0:04:58.8]} 2. Nf3 {[%clk 0:04:56.5]}
2... e6 {[%clk 0:04:58.1]} 3. d4 {[%clk 0:04:55.8]} 3... cxd4 {[%clk 0:04:58]}
4. Bg5 {[%clk 0:04:55.1]} 4... Nf6 {[%clk 0:04:57.9]} 5. e5 {[%clk 0:04:53.6]}
5... Qa5+ {[%clk 0:04:45.9]} 6. Bd2 {[%clk 0:04:49.1]} 6... Qb6 {[%clk
0:04:39.8]} 7. Na3 {[%clk 0:04:35.3]} 7... Ne4 {[%clk 0:04:34.7]} 8. Nc4 {[%clk
0:04:32.9]} 8... Qc7 {[%clk 0:04:18.4]} 9. Bd3 {[%clk 0:04:30.8]} 9... Nxd2
{[%clk 0:04:16.9]} 10. Qxd2 {[%clk 0:04:29.2]} 10... b5 {[%clk 0:04:13.7]} 11.
Nd6+ {[%clk 0:04:21.8]} 11... Bxd6 {[%clk 0:04:11.5]} 12. exd6 {[%clk
0:04:21.7]} 12... Qxd6 {[%clk 0:04:11.4]} 13. O-O {[%clk 0:04:21.4]} 13... a6
{[%clk 0:04:09.8]} 14. Rfe1 {[%clk 0:04:17.6]} 14... Nc6 {[%clk 0:04:07.3]} 15.
Qg5 {[%clk 0:04:12.2]} 15... Qf8 {[%clk 0:03:16.9]} 16. Re4 {[%clk 0:04:06.4]}
16... h6 {[%clk 0:03:12.6]} 17. Qf4 {[%clk 0:03:56.8]} 17... g5 {[%clk
0:03:07.1]} 18. Qf6 {[%clk 0:03:51.4]} 18... Rg8 {[%clk 0:02:59.4]} 19. Nxd4
{[%clk 0:03:48.2]} 19... Rg6 {[%clk 0:02:50.7]} 20. Rxe6+ {[%clk 0:03:29.8]}
20... dxe6 {[%clk 0:02:38.7]} 21. Bxg6 {[%clk 0:03:28]} 21... Qe7 {[%clk
0:02:24.5]} 22. Qh8+ {[%clk 0:03:22.1]} 22... Qf8 {[%clk 0:02:17.7]} 23. Bxf7+
{[%clk 0:03:00.6]} 23... Kxf7 {[%clk 0:02:08.8]} 24. Qxf8+ {[%clk 0:02:59.6]}
24... Kxf8 {[%clk 0:02:07.1]} 25. Nxc6 {[%clk 0:02:59.2]} 25... Bb7 {[%clk
0:02:04.2]} 26. Nd4 {[%clk 0:02:41.6]} 26... e5 {[%clk 0:02:03.1]} 27. Nf5
{[%clk 0:02:40.5]} 27... h5 {[%clk 0:01:53]} 28. Rd1 {[%clk 0:02:38.5]} 28...
Be4 {[%clk 0:01:47.6]} 29. Ne3 {[%clk 0:02:37.1]} 29... Kf7 {[%clk 0:01:44.7]}
30. f3 {[%clk 0:02:35.2]} 30... Bg6 {[%clk 0:01:41.4]} 31. Kf2 {[%clk
0:02:34.4]} 31... Ke6 {[%clk 0:01:36.3]} 32. Ke2 {[%clk 0:02:19.4]} 32... Rc8
{[%clk 0:01:31.1]} 33. Rc1 {[%clk 0:02:15.1]} 33... e4 {[%clk 0:01:27.1]} 34. c4
{[%clk 0:02:11.3]} 34... exf3+ {[%clk 0:01:10.4]} 35. gxf3 {[%clk 0:02:10]}
35... Ke5 {[%clk 0:01:04]} 36. b4 {[%clk 0:02:03.9]} 36... Kd4 {[%clk
0:00:57.4]} 37. c5 {[%clk 0:01:48.5]} 37... Bd3+ {[%clk 0:00:49.3]} 38. Kf2
{[%clk 0:01:47.3]} 38... Bg6 {[%clk 0:00:45.1]} 39. a3 {[%clk 0:01:43]} 39...
Ke5 {[%clk 0:00:23.4]} 40. Rd1 {[%clk 0:01:39.7]} 40... a5 {[%clk 0:00:17.8]}
41. Rd5+ {[%clk 0:01:37.2]} 41... Ke6 {[%clk 0:00:15.7]} 42. Rd6+ {[%clk
0:01:36.3]} 42... Ke7 {[%clk 0:00:13.1]} 43. Rxg6 {[%clk 0:01:34.6]} 1-0

[Event "Live Chess"]
[Site "Chess.com"]
[Date "2024.06.02"]
[Round "-"]
[White "EdenHazard8"]
[Black "TheSmoulderingMaster"]
[Result "1-0"]
[WhiteElo "2177"]
[BlackElo "1750"]
[TimeControl "300"]
[EndTime "1:06:15 PDT"]
[Termination "EdenHazard8 won by resignation"]

1. e4 {[%clk 0:04:58.4]} 1... c5 {[%clk 0:04:57.9]} 2. Nf3 {[%clk 0:04:57.7]}
2... d6 {[%clk 0:04:52.3]} 3. g3 {[%clk 0:04:53.1]} 3... Nc6 {[%clk 0:04:46.1]}
4. Bg2 {[%clk 0:04:51.8]} 4... Nf6 {[%clk 0:04:43.8]} 5. d3 {[%clk 0:04:49.9]}
5... g6 {[%clk 0:04:41.2]} 6. O-O {[%clk 0:04:48.6]} 6... Bg7 {[%clk 0:04:39.7]}
7. c3 {[%clk 0:04:47.4]} 7... O-O {[%clk 0:04:37.9]} 8. Re1 {[%clk 0:04:46.2]}
8... Bg4 {[%clk 0:04:32.8]} 9. h3 {[%clk 0:04:44.8]} 9... Bd7 {[%clk 0:04:30.4]}
10. d4 {[%clk 0:04:43]} 10... cxd4 {[%clk 0:04:28.3]} 11. cxd4 {[%clk
0:04:42.1]} 11... Qc8 {[%clk 0:04:24.5]} 12. e5 {[%clk 0:04:38.9]} 12... Ne8
{[%clk 0:04:19]} 13. exd6 {[%clk 0:04:36.1]} 13... exd6 {[%clk 0:04:16.6]} 14.
Kh2 {[%clk 0:04:34]} 14... d5 {[%clk 0:04:10.8]} 15. Nc3 {[%clk 0:04:30.1]}
15... Kh8 {[%clk 0:04:05.3]} 16. Nxd5 {[%clk 0:04:23.5]} 16... f5 {[%clk
0:03:58.8]} 17. Be3 {[%clk 0:04:04.2]} 17... Be6 {[%clk 0:03:52.8]} 18. Nf4
{[%clk 0:04:02.6]} 18... Bd7 {[%clk 0:03:48.4]} 19. Rc1 {[%clk 0:03:59.8]} 19...
Qd8 {[%clk 0:03:39.7]} 20. d5 {[%clk 0:03:57.9]} 20... Ne5 {[%clk 0:03:37.6]}
21. Nxe5 {[%clk 0:03:53]} 21... Bxe5 {[%clk 0:03:35.5]} 22. Bd4 {[%clk
0:03:51.4]} 22... Qf6 {[%clk 0:03:31.2]} 23. Bxe5 {[%clk 0:03:48.5]} 1-0

[Event "Live Chess"]
[Site "Chess.com"]
[Date "2024.06.02"]
[Round "-"]
[White "Duke_of_Bebington"]
[Black "SavagePawn7"]
[Result "1-0"]
[WhiteElo "1682"]
[BlackElo "653"]
[TimeControl "300"]
[EndTime "1:06:50 PDT"]
[Termination "Duke_of_Bebington won by resignation"]

1. e4 {[%clk 0:04:56.8]} 1... d5 {[%clk 0:04:58.5]} 2. exd5 {[%clk 0:04:54.1]}
2... Nf6 {[%clk 0:04:56.8]} 3. Nf3 {[%clk 0:04:52.7]} 3... Nxd5 {[%clk
0:04:54.8]} 4. d4 {[%clk 0:04:52]} 4... g6 {[%clk 0:04:47.2]} 5. Be2 {[%clk
0:04:50.6]} 5... Bg7 {[%clk 0:04:29.2]} 6. O-O {[%clk 0:04:48]} 6... O-O {[%clk
0:04:26.7]} 7. c4 {[%clk 0:04:26.9]} 7... Nb6 {[%clk 0:04:17.1]} 8. Be3 {[%clk
0:04:14.3]} 8... Bg4 {[%clk 0:04:02.7]} 9. h3 {[%clk 0:04:11.5]} 9... Bxf3
{[%clk 0:03:54.6]} 10. Bxf3 {[%clk 0:04:09.9]} 10... c6 {[%clk 0:03:50.8]} 11.
Qb3 {[%clk 0:04:00.7]} 11... Re8 {[%clk 0:03:43]} 12. Nc3 {[%clk 0:03:58.9]}
12... e6 {[%clk 0:03:23.8]} 13. Rad1 {[%clk 0:03:56.1]} 13... N8d7 {[%clk
0:02:54.4]} 14. Ne4 {[%clk 0:03:51.8]} 14... Qc7 {[%clk 0:02:35.5]} 15. c5
{[%clk 0:03:27.1]} 15... Nd5 {[%clk 0:02:28]} 16. Nd6 {[%clk 0:03:26.1]} 16...
Rf8 {[%clk 0:02:14.6]} 17. Bxd5 {[%clk 0:03:22.2]} 17... cxd5 {[%clk 0:02:11.1]}
18. Qxb7 {[%clk 0:02:59.7]} 18... Qxb7 {[%clk 0:02:06.3]} 19. Nxb7 {[%clk
0:02:58.4]} 19... Rab8 {[%clk 0:02:03]} 20. c6 {[%clk 0:02:57.6]} 20... Nb6
{[%clk 0:01:56.6]} 21. Rc1 {[%clk 0:02:49.2]} 21... e5 {[%clk 0:01:38.2]} 22.
dxe5 {[%clk 0:02:41.2]} 22... Bxe5 {[%clk 0:01:36.8]} 23. Bxb6 {[%clk 0:02:28]}
23... axb6 {[%clk 0:01:33.6]} 24. Rfe1 {[%clk 0:02:21]} 24... Bc7 {[%clk
0:01:19.1]} 25. Re7 {[%clk 0:02:16.7]} 25... Rbc8 {[%clk 0:01:11.9]} 26. Rd7
{[%clk 0:02:10.4]} 26... Rfe8 {[%clk 0:01:03.5]} 27. Rxd5 {[%clk 0:02:07.6]}
27... Kf8 {[%clk 0:00:59.1]} 28. Nd6 {[%clk 0:01:53.9]} 28... Bxd6 {[%clk
0:00:52.4]} 29. Rxd6 {[%clk 0:01:53.8]} 29... Red8 {[%clk 0:00:45.6]} 30. Rxd8+
{[%clk 0:01:46.1]} 30... Rxd8 {[%clk 0:00:43.1]} 31. Kf1 {[%clk 0:01:43.4]}
31... Ke7 {[%clk 0:00:37.9]} 32. Ke2 {[%clk 0:01:42.6]} 32... Kd6 {[%clk
0:00:35.9]} 33. Kd3 {[%clk 0:01:39.9]} 33... Rc8 {[%clk 0:00:34.7]} 34. a3
{[%clk 0:01:35.5]} 34... Rxc6 {[%clk 0:00:33]} 35. Rxc6+ {[%clk 0:01:33.2]}
35... Kxc6 {[%clk 0:00:31.7]} 36. Kc4 {[%clk 0:01:33.1]} 36... b5+ {[%clk
0:00:30.1]} 37. Kb4 {[%clk 0:01:31.9]} 37... Kb6 {[%clk 0:00:28.5]} 38. f3
{[%clk 0:01:30.6]} 38... f5 {[%clk 0:00:26.7]} 39. g4 {[%clk 0:01:28.9]} 39...
fxg4 {[%clk 0:00:24.4]} 40. fxg4 {[%clk 0:01:28.2]} 40... h6 {[%clk 0:00:21.4]}
41. h4 {[%clk 0:01:27.5]} 41... Ka6 {[%clk 0:00:18.9]} 42. Kc5 {[%clk
0:01:26.2]} 42... Ka5 {[%clk 0:00:17.2]} 43. b4+ {[%clk 0:01:24.5]} 43... Ka4
{[%clk 0:00:15.4]} 44. Kb6 {[%clk 0:01:22.7]} 44... Kxa3 {[%clk 0:00:10.1]} 45.
Kxb5 {[%clk 0:01:22.1]} 45... Kb3 {[%clk 0:00:07.6]} 46. Kc5 {[%clk 0:01:20]}
1-0

[Event "Live Chess"]
[Site "Chess.com"]
[Date "2024.06.02"]
[Round "-"]
[White "shoomi777"]
[Black "Ferrarifan27"]
[Result "0-1"]
[WhiteElo "1120"]
[BlackElo "2132"]
[TimeControl "300"]
[EndTime "1:07:10 PDT"]
[Termination "Ferrarifan27 won on time"]

1. e4 {[%clk 0:04:53.9]} 1... e5 {[%clk 0:04:53.7]} 2. Nf3 {[%clk 0:04:49.8]}
2... Nc6 {[%clk 0:04:47.4]} 3. Bb5 {[%clk 0:04:47]} 3... a6 {[%clk 0:04:45.7]}
4. Ba4 {[%clk 0:04:45.4]} 4... Nf6 {[%clk 0:04:44]} 5. O-O {[%clk 0:04:40.5]}
5... Be7 {[%clk 0:04:38.8]} 6. d3 {[%clk 0:04:37.4]} 6... b5 {[%clk 0:04:37.2]}
7. Bb3 {[%clk 0:04:35.7]} 7... O-O {[%clk 0:04:36]} 8. c3 {[%clk 0:04:14.5]}
8... d5 {[%clk 0:04:28.1]} 9. exd5 {[%clk 0:03:49.8]} 9... Nxd5 {[%clk 0:04:28]}
10. Qe2 {[%clk 0:03:27.2]} 10... Bf6 {[%clk 0:04:22.8]} 11. Nbd2 {[%clk
0:02:59.6]} 11... Nf4 {[%clk 0:04:13.7]} 12. Qe4 {[%clk 0:02:48.7]} 12... Bb7
{[%clk 0:04:10.5]} 13. Nxe5 {[%clk 0:02:42]} 13... Bxe5 {[%clk 0:04:06.6]} 14.
Bc2 {[%clk 0:02:18.3]} 14... Ng6 {[%clk 0:03:59.1]} 15. d4 {[%clk 0:02:10.6]}
15... Bf6 {[%clk 0:03:55.2]} 16. Nf3 {[%clk 0:02:03.1]} 16... Re8 {[%clk
0:03:48.3]} 17. Qf5 {[%clk 0:01:59.9]} 17... Nce7 {[%clk 0:03:43.7]} 18. Qh3
{[%clk 0:01:50.9]} 18... Qc8 {[%clk 0:03:16.2]} 19. Qh5 {[%clk 0:01:45.2]} 19...
Qd7 {[%clk 0:02:59.7]} 20. Ne5 {[%clk 0:01:42.5]} 20... Bxe5 {[%clk 0:02:43.7]}
21. dxe5 {[%clk 0:01:41.1]} 21... Qd5 {[%clk 0:02:41.8]} 22. Qh3 {[%clk
0:01:06.4]} 22... Qxe5 {[%clk 0:02:33.5]} 23. Be3 {[%clk 0:00:51.7]} 23... Nd5
{[%clk 0:02:20]} 24. Bd4 {[%clk 0:00:48.3]} 24... Ndf4 {[%clk 0:02:12.1]} 25.
Qg3 {[%clk 0:00:13.3]} 25... Ne2+ {[%clk 0:02:10.4]} 26. Kh1 {[%clk 0:00:08.9]}
26... Nxg3+ {[%clk 0:02:09.5]} 27. hxg3 {[%clk 0:00:07.3]} 27... Qh5+ {[%clk
0:02:07.6]} 28. Kg1 {[%clk 0:00:05.5]} 28... Re2 {[%clk 0:02:03.3]} 0-1

[Event "Live Chess"]
[Site "Chess.com"]
[Date "2024.06.02"]
[Round "-"]
[White "RG_ChessLegend"]
[Black "NottheBishopSacrifice"]
[Result "0-1"]
[WhiteElo "1515"]
[BlackElo "2309"]
[TimeControl "300"]
[EndTime "1:07:28 PDT"]
[Termination "NottheBishopSacrifice won by resignation"]

1. e4 {[%clk 0:04:59.3]} 1... c6 {[%clk 0:04:58.7]} 2. d4 {[%clk 0:04:58.2]}
2... d5 {[%clk 0:04:58.6]} 3. exd5 {[%clk 0:04:58.1]} 3... cxd5 {[%clk
0:04:57.5]} 4. Nf3 {[%clk 0:04:58]} 4... Nc6 {[%clk 0:04:56.5]} 5. c3 {[%clk
0:04:56.2]} 5... Bg4 {[%clk 0:04:55.1]} 6. h3 {[%clk 0:04:54.4]} 6... Bh5 {[%clk
0:04:52.5]} 7. g4 {[%clk 0:04:53.7]} 7... Bg6 {[%clk 0:04:51.7]} 8. Bg2 {[%clk
0:04:52.7]} 8... e6 {[%clk 0:04:50.8]} 9. Bf4 {[%clk 0:04:51]} 9... Bd6 {[%clk
0:04:49.9]} 10. Bg3 {[%clk 0:04:47.6]} 10... Bxg3 {[%clk 0:04:47.9]} 11. fxg3
{[%clk 0:04:47.5]} 11... Qd6 {[%clk 0:04:47]} 12. Kf2 {[%clk 0:04:42.5]} 12...
Nf6 {[%clk 0:04:46.4]} 13. Nfd2 {[%clk 0:04:35.8]} 13... O-O {[%clk 0:04:42]}
14. Bf3 {[%clk 0:04:33.7]} 14... e5 {[%clk 0:04:40.3]} 15. Nb3 {[%clk
0:04:26.5]} 15... e4 {[%clk 0:04:30.9]} 16. Be2 {[%clk 0:04:23]} 16... e3+
{[%clk 0:04:29.5]} 17. Kg2 {[%clk 0:04:19.8]} 17... Be4+ {[%clk 0:04:26.9]} 18.
Bf3 {[%clk 0:04:19.1]} 18... Rae8 {[%clk 0:04:25]} 19. Bxe4 {[%clk 0:04:17.3]}
19... Nxe4 {[%clk 0:04:23.5]} 20. Qf3 {[%clk 0:04:12.2]} 20... Ng5 {[%clk
0:04:22.1]} 21. Qe2 {[%clk 0:04:09.3]} 21... Qe6 {[%clk 0:04:19]} 22. Rf1 {[%clk
0:04:06.1]} 22... Qe4+ {[%clk 0:04:17.9]} 23. Kh2 {[%clk 0:04:03]} 23... f5
{[%clk 0:04:15.5]} 24. gxf5 {[%clk 0:04:00.2]} 24... Rxf5 {[%clk 0:04:13.6]} 25.
Na3 {[%clk 0:03:56.9]} 25... Nf3+ {[%clk 0:04:11.6]} 26. Rxf3 {[%clk 0:03:45.3]}
26... Rxf3 {[%clk 0:04:09.8]} 27. Nc5 {[%clk 0:03:42.4]} 27... Qf5 {[%clk
0:04:06.2]} 28. Kh1 {[%clk 0:03:35.6]} 28... Rf2 {[%clk 0:04:02.6]} 29. Qg4
{[%clk 0:03:29.9]} 29... Qxg4 {[%clk 0:04:01.1]} 30. hxg4 {[%clk 0:03:29.8]}
30... e2 {[%clk 0:04:00.8]} 31. Re1 {[%clk 0:03:28.2]} 31... Rf1+ {[%clk
0:03:59.7]} 0-1

[Event "Live Chess"]
[Site "Chess.com"]
[Date "2024.06.02"]
[Round "-"]
[White "JohanKjeldahl"]
[Black "AlanBstard10"]
[Result "1-0"]
[WhiteElo "1868"]
[BlackElo "1198"]
[TimeControl "300"]
[EndTime "1:07:29 PDT"]
[Termination "JohanKjeldahl won by checkmate"]

1. e4 {[%clk 0:04:57.1]} 1... g6 {[%clk 0:04:57.7]} 2. d4 {[%clk 0:04:55.1]}
2... d6 {[%clk 0:04:55.5]} 3. Nc3 {[%clk 0:04:53.5]} 3... Bg7 {[%clk 0:04:54.7]}
4. f4 {[%clk 0:04:52.2]} 4... e6 {[%clk 0:04:53.2]} 5. Nf3 {[%clk 0:04:51.5]}
5... Bd7 {[%clk 0:04:52.4]} 6. Bd3 {[%clk 0:04:48]} 6... Qe7 {[%clk 0:04:50.6]}
7. Be3 {[%clk 0:04:46.1]} 7... Na6 {[%clk 0:04:48]} 8. a3 {[%clk 0:04:44.1]}
8... Nf6 {[%clk 0:04:41.3]} 9. h3 {[%clk 0:04:37.1]} 9... O-O {[%clk 0:04:37.9]}
10. Qd2 {[%clk 0:04:36.2]} 10... c5 {[%clk 0:04:31.7]} 11. g4 {[%clk 0:04:32.5]}
11... cxd4 {[%clk 0:04:30.4]} 12. Bxd4 {[%clk 0:04:31.4]} 12... Nc5 {[%clk
0:04:23.5]} 13. O-O-O {[%clk 0:04:23.9]} 13... Nxd3+ {[%clk 0:04:22.2]} 14. Qxd3
{[%clk 0:04:22.1]} 14... Ne8 {[%clk 0:04:19.9]} 15. Bxg7 {[%clk 0:04:19.3]}
15... Kxg7 {[%clk 0:04:19.1]} 16. f5 {[%clk 0:04:15]} 16... exf5 {[%clk
0:04:16.5]} 17. gxf5 {[%clk 0:04:10]} 17... Rc8 {[%clk 0:04:12.9]} 18. Nd5
{[%clk 0:04:08.1]} 18... Qd8 {[%clk 0:03:59.9]} 19. Qd4+ {[%clk 0:04:02.3]}
19... Nf6 {[%clk 0:03:57]} 20. Ng5 {[%clk 0:03:48.3]} 20... Kh6 {[%clk
0:03:50.9]} 21. Nxf6 {[%clk 0:03:42.9]} 21... Kxg5 {[%clk 0:03:47.6]} 22. Rdg1+
{[%clk 0:03:36.7]} 22... Kh6 {[%clk 0:03:42.9]} 23. Ng4+ {[%clk 0:03:33.7]}
23... Kh5 {[%clk 0:03:40.3]} 24. Qg7 {[%clk 0:03:28.1]} 24... Qg5+ {[%clk
0:03:28.2]} 25. Kb1 {[%clk 0:03:24]} 25... Rg8 {[%clk 0:03:19.5]} 26. Qxh7+
{[%clk 0:03:21.8]} 26... Qh6 {[%clk 0:03:12.2]} 27. Qxh6# {[%clk 0:03:19.8]} 1-0

[Event "Live Chess"]
[Site "Chess.com"]
[Date "2024.06.02"]
[Round "-"]
[White "WelshTiger"]
[Black "JanMur7"]
[Result "0-1"]
[WhiteElo "2434"]
[BlackElo "2268"]
[TimeControl "300"]
[EndTime "1:07:40 PDT"]
[Termination "JanMur7 won by checkmate"]

1. e4 {[%clk 0:04:56.5]} 1... g6 {[%clk 0:04:58.4]} 2. d4 {[%clk 0:04:54.9]}
2... Bg7 {[%clk 0:04:58]} 3. Nc3 {[%clk 0:04:54.2]} 3... c5 {[%clk 0:04:57.3]}
4. d5 {[%clk 0:04:50.3]} 4... d6 {[%clk 0:04:55.2]} 5. h3 {[%clk 0:04:49.5]}
5... Nf6 {[%clk 0:04:54.4]} 6. Nf3 {[%clk 0:04:48.7]} 6... O-O {[%clk
0:04:53.8]} 7. Bc4 {[%clk 0:04:45.2]} 7... a6 {[%clk 0:04:52.5]} 8. a4 {[%clk
0:04:43.7]} 8... Bd7 {[%clk 0:04:51.1]} 9. O-O {[%clk 0:04:39.3]} 9... Be8
{[%clk 0:04:48.9]} 10. Re1 {[%clk 0:04:35.9]} 10... Nbd7 {[%clk 0:04:48.2]} 11.
Bf4 {[%clk 0:04:32.6]} 11... Nb6 {[%clk 0:04:46.9]} 12. b3 {[%clk 0:04:28.9]}
12... Nc8 {[%clk 0:04:43.9]} 13. Qd2 {[%clk 0:04:26]} 13... Rb8 {[%clk
0:04:41.3]} 14. a5 {[%clk 0:04:19.3]} 14... b5 {[%clk 0:04:34.9]} 15. axb6
{[%clk 0:04:17.9]} 15... Nxb6 {[%clk 0:04:34.5]} 16. Bh6 {[%clk 0:04:16]} 16...
Nxc4 {[%clk 0:04:32.4]} 17. bxc4 {[%clk 0:04:12.9]} 17... Rb4 {[%clk 0:04:30.6]}
18. Bxg7 {[%clk 0:04:11.6]} 18... Kxg7 {[%clk 0:04:30.5]} 19. e5 {[%clk
0:04:09.9]} 19... dxe5 {[%clk 0:04:15.9]} 20. Nxe5 {[%clk 0:04:08.8]} 20... Nd7
{[%clk 0:04:12.1]} 21. Nc6 {[%clk 0:04:06.9]} 21... Qc7 {[%clk 0:04:08.8]} 22.
Nxb4 {[%clk 0:04:04.3]} 22... cxb4 {[%clk 0:04:07.7]} 23. Ne4 {[%clk 0:04:03.3]}
23... Qxc4 {[%clk 0:04:03.9]} 24. c3 {[%clk 0:03:38.4]} 24... bxc3 {[%clk
0:03:58.4]} 25. Qxc3+ {[%clk 0:03:37.5]} 25... Qxc3 {[%clk 0:03:57.1]} 26. Nxc3
{[%clk 0:03:37.4]} 26... Nc5 {[%clk 0:03:47]} 27. Rxe7 {[%clk 0:03:35.1]} 27...
Bb5 {[%clk 0:03:45.4]} 28. Nxb5 {[%clk 0:03:32.6]} 28... axb5 {[%clk 0:03:45.3]}
29. Rb1 {[%clk 0:03:28.9]} 29... Rd8 {[%clk 0:03:41.3]} 30. Rxb5 {[%clk
0:03:08.3]} 30... Rxd5 {[%clk 0:03:38.4]} 31. Rc7 {[%clk 0:03:03.8]} 31... Rd1+
{[%clk 0:03:35.3]} 32. Kh2 {[%clk 0:03:03.2]} 32... Ne6 {[%clk 0:03:34.6]} 33.
Ra7 {[%clk 0:03:00.3]} 33... Rd4 {[%clk 0:03:25.4]} 34. Rbb7 {[%clk 0:02:57.2]}
34... Rf4 {[%clk 0:03:24]} 35. f3 {[%clk 0:02:56.7]} 35... h5 {[%clk 0:03:20.8]}
36. Rb6 {[%clk 0:02:53.5]} 36... Kg8 {[%clk 0:03:18]} 37. Kg3 {[%clk 0:02:50]}
37... Rf5 {[%clk 0:03:16]} 38. Ra2 {[%clk 0:02:45.9]} 38... Rd5 {[%clk
0:03:11.7]} 39. h4 {[%clk 0:02:41.8]} 39... Rd4 {[%clk 0:03:06]} 40. Re2 {[%clk
0:02:39.5]} 40... Kg7 {[%clk 0:03:01.5]} 41. Rb7 {[%clk 0:02:35]} 41... Kf6
{[%clk 0:02:58.3]} 42. Ra2 {[%clk 0:02:33.3]} 42... Kg7 {[%clk 0:02:49.1]} 43.
Ra6 {[%clk 0:02:31.9]} 43... Kg8 {[%clk 0:02:45.6]} 44. Re7 {[%clk 0:02:27.3]}
44... Rd5 {[%clk 0:02:38.8]} 45. Kf2 {[%clk 0:02:09.9]} 45... Rf5 {[%clk
0:02:27.8]} 46. Ke3 {[%clk 0:02:08]} 46... Re5+ {[%clk 0:02:24.8]} 47. Kf2
{[%clk 0:02:05.8]} 47... Rf5 {[%clk 0:02:23.8]} 48. Ra2 {[%clk 0:01:57]} 48...
Kf8 {[%clk 0:02:20.4]} 49. Rb7 {[%clk 0:01:55.5]} 49... Kg8 {[%clk 0:02:15.3]}
50. Ra8+ {[%clk 0:01:53.5]} 50... Kg7 {[%clk 0:02:14.1]} 51. Rbb8 {[%clk
0:01:53.4]} 51... Rf4 {[%clk 0:01:40.2]} 52. g3 {[%clk 0:01:45.6]} 52... Rf5
{[%clk 0:01:38.8]} 53. Rb2 {[%clk 0:01:39.6]} 53... Rc5 {[%clk 0:01:32.8]} 54.
Re2 {[%clk 0:01:37.1]} 54... Rf5 {[%clk 0:01:29]} 55. Ra7 {[%clk 0:01:35.2]}
55... Kg8 {[%clk 0:01:27.9]} 56. Ra3 {[%clk 0:01:30.2]} 56... Rd5 {[%clk
0:01:26.4]} 57. Rae3 {[%clk 0:01:28.2]} 57... Rf5 {[%clk 0:01:23.7]} 58. Re5
{[%clk 0:01:27.3]} 58... Rf6 {[%clk 0:01:20.5]} 59. Kg2 {[%clk 0:01:22.8]} 59...
Nd4 {[%clk 0:01:16.2]} 60. R2e3 {[%clk 0:01:20.6]} 60... Ra6 {[%clk 0:01:12.3]}
61. g4 {[%clk 0:01:19]} 61... hxg4 {[%clk 0:01:07.7]} 62. fxg4 {[%clk
0:01:17.9]} 62... Kg7 {[%clk 0:01:05.2]} 63. Kg3 {[%clk 0:01:17.3]} 63... Ne6
{[%clk 0:01:03.2]} 64. h5 {[%clk 0:01:05.3]} 64... gxh5 {[%clk 0:01:01.1]} 65.
gxh5 {[%clk 0:01:04.7]} 65... Rb6 {[%clk 0:00:54.7]} 66. Kg4 {[%clk 0:01:03]}
66... Rb4+ {[%clk 0:00:51.2]} 67. R3e4 {[%clk 0:01:02.4]} 67... Rb1 {[%clk
0:00:48.4]} 68. Re3 {[%clk 0:01:00.1]} 68... Rb4+ {[%clk 0:00:45.4]} 69. Kf5
{[%clk 0:00:59.2]} 69... Rf4# {[%clk 0:00:43.8]} 0-1

[Event "Live Chess"]
[Site "Chess.com"]
[Date "2024.06.02"]
[Round "-"]
[White "nyclone"]
[Black "Tatarinov_Maxim"]
[Result "0-1"]
[WhiteElo "1126"]
[BlackElo "2272"]
[TimeControl "300"]
[EndTime "1:07:54 PDT"]
[Termination "Tatarinov_Maxim won by checkmate"]

1. e4 {[%clk 0:04:58.3]} 1... c5 {[%clk 0:04:58.3]} 2. a3 {[%clk 0:04:56.7]}
2... e6 {[%clk 0:04:56.5]} 3. b4 {[%clk 0:04:56]} 3... cxb4 {[%clk 0:04:55.5]}
4. axb4 {[%clk 0:04:55.2]} 4... Bxb4 {[%clk 0:04:55.1]} 5. c3 {[%clk 0:04:54]}
5... Be7 {[%clk 0:04:53.8]} 6. Nf3 {[%clk 0:04:48.2]} 6... d6 {[%clk 0:04:52.8]}
7. d4 {[%clk 0:04:47.5]} 7... Nf6 {[%clk 0:04:50.6]} 8. Bd3 {[%clk 0:04:41]}
8... O-O {[%clk 0:04:49.5]} 9. O-O {[%clk 0:04:40.1]} 9... Nc6 {[%clk 0:04:48]}
10. Ba3 {[%clk 0:04:34.9]} 10... d5 {[%clk 0:04:42.3]} 11. e5 {[%clk 0:04:17.7]}
11... Bxa3 {[%clk 0:04:38.3]} 12. Nxa3 {[%clk 0:04:15.2]} 12... Nd7 {[%clk
0:04:31.7]} 13. Bxh7+ {[%clk 0:04:07]} 13... Kxh7 {[%clk 0:04:30.6]} 14. Qd3+
{[%clk 0:04:05.5]} 14... Kg8 {[%clk 0:04:23.9]} 15. h4 {[%clk 0:04:04.7]} 15...
f6 {[%clk 0:04:19.1]} 16. h5 {[%clk 0:03:42.4]} 16... fxe5 {[%clk 0:04:11.3]}
17. h6 {[%clk 0:03:32.4]} 17... e4 {[%clk 0:04:09.5]} 18. Qe3 {[%clk 0:03:22.2]}
18... exf3 {[%clk 0:04:01.1]} 19. gxf3 {[%clk 0:03:11.3]} 19... Qf6 {[%clk
0:03:53.9]} 20. hxg7 {[%clk 0:03:08.9]} 20... Qxg7+ {[%clk 0:03:51.6]} 21. Kh1
{[%clk 0:03:07.1]} 21... Qh7+ {[%clk 0:03:38.4]} 22. Kg1 {[%clk 0:03:04.1]}
22... Qg6+ {[%clk 0:03:37.8]} 23. Kh1 {[%clk 0:03:03]} 23... Rf7 {[%clk
0:03:35.8]} 24. Rg1 {[%clk 0:02:26.9]} 24... Rh7+ {[%clk 0:03:31.8]} 25. Qh6
{[%clk 0:02:19.1]} 25... Rxh6# {[%clk 0:03:31.7]} 0-1

[Event "Live Chess"]
[Site "Chess.com"]
[Date "2024.06.02"]
[Round "-"]
[White "matt1979"]
[Black "Isambard_Thomas"]
[Result "0-1"]
[WhiteElo "1396"]
[BlackElo "2162"]
[TimeControl "300"]
[EndTime "1:07:57 PDT"]
[Termination "Isambard_Thomas won by resignation"]

1. f4 {[%clk 0:04:59.1]} 1... e5 {[%clk 0:04:54.2]} 2. fxe5 {[%clk 0:04:57.7]}
2... d6 {[%clk 0:04:51.8]} 3. Nf3 {[%clk 0:04:56.8]} 3... dxe5 {[%clk
0:04:43.4]} 4. e4 {[%clk 0:04:54.8]} 4... Nc6 {[%clk 0:04:35.3]} 5. Bb5 {[%clk
0:04:47.7]} 5... Bd6 {[%clk 0:04:31.9]} 6. O-O {[%clk 0:04:44]} 6... Nf6 {[%clk
0:04:26.6]} 7. d3 {[%clk 0:04:37.4]} 7... Bd7 {[%clk 0:04:11.3]} 8. Bg5 {[%clk
0:04:35.4]} 8... O-O {[%clk 0:04:06.8]} 9. Nh4 {[%clk 0:04:22.3]} 9... Bg4
{[%clk 0:03:44]} 10. Qe1 {[%clk 0:04:11.5]} 10... Nd4 {[%clk 0:03:42.5]} 11. Ba4
{[%clk 0:04:06.3]} 11... Be7 {[%clk 0:03:38]} 12. c3 {[%clk 0:03:55.9]} 12...
Ne6 {[%clk 0:03:23]} 13. Nf5 {[%clk 0:03:38.4]} 13... Nxg5 {[%clk 0:03:17.8]}
14. Nxe7+ {[%clk 0:03:27.8]} 14... Qxe7 {[%clk 0:03:17.2]} 15. Qh4 {[%clk
0:03:18.5]} 15... Qc5+ {[%clk 0:02:24]} 16. Kh1 {[%clk 0:03:10.8]} 16... Be2
{[%clk 0:02:15.9]} 17. Rf5 {[%clk 0:02:54.9]} 17... Ne6 {[%clk 0:01:54.3]} 18.
Nd2 {[%clk 0:02:40.7]} 18... Bxd3 {[%clk 0:01:52.5]} 19. Qg3 {[%clk 0:01:52.5]}
19... Nxe4 {[%clk 0:01:49.9]} 20. Nxe4 {[%clk 0:01:42.2]} 20... Bxe4 {[%clk
0:01:48.8]} 21. Rxe5 {[%clk 0:01:37.4]} 21... Bd5 {[%clk 0:01:43.5]} 22. Bb3
{[%clk 0:01:34.4]} 22... c6 {[%clk 0:01:33.3]} 23. c4 {[%clk 0:01:27.6]} 23...
Bxg2+ {[%clk 0:01:24.1]} 24. Kxg2 {[%clk 0:01:21.7]} 24... Qd4 {[%clk
0:01:22.1]} 25. Rae1 {[%clk 0:00:56.2]} 25... Nf4+ {[%clk 0:01:17.6]} 26. Kh1
{[%clk 0:00:45.9]} 26... Nd3 {[%clk 0:01:16.2]} 27. Rg5 {[%clk 0:00:40.6]} 27...
Nxe1 {[%clk 0:01:08.5]} 28. Rxg7+ {[%clk 0:00:38]} 28... Qxg7 {[%clk 0:01:07.5]}
0-1